bitfinex/quotes_ETHUSD_20240902
["timestamp","ask_amount","ask_price","bid_price","bid_amount"]
[1725297698970,3.96585,2521.6,2521.5,0.13232493]
[1725297699186,3.96585,2521.6,2521.1,23.9464]
[1725297699384,3.96585,2521.6,2521.5,0.13232493]
[1725297699582,3.96585,2521.6,2521.1,23.9464]
[1725297699783,3.96585,2521.6,2521.5,0.13232493]
[1725297699973,3.96585,2521.6,2521.1,23.9464]
[1725297700169,3.96585,2521.6,2521.5,0.13232493]
[1725297700383,3.96585,2521.6,2521.1,23.9464]
[1725297700759,3.96622,2521.3,2521.1,19.98]
[1725297700966,3.96622,2521.3,2521.2,0.13247611]
[1725297701310,6.30366,2521.4,2521.2,0.13247611]
[1725297701466,3.96606,2521.4,2521.2,0.13247611]
[1725297702313,3.96605,2521.4,2521.2,0.13247611]
[1725297702480,6.644405,2521.3,2521.2,0.13247611]
[1725297702662,6.2478,2521.3,2521.2,0.13247611]
[1725297703608,10.214,2521.3,2521.2,0.13247611]
[1725297703822,6.2478,2521.3,2521.2,0.13247611]
[1725297703978,10.214,2521.3,2521.2,0.13247611]
[1725297704176,6.2478,2521.3,2520.7,32.47747033]
[1725297704401,3.96649,2521.2,2520.7,36.49240589]
[1725297704589,3.96649,2521.2,2520.8,0.1329188]
[1725297704798,3.96652,2521.1,2520.8,0.1329188]
[1725297704990,3.96674,2521.0,2520.7,27.26]
[1725297705191,3.96674,2521.0,2520.9,0.13286838]
[1725297705390,3.96674,2521.0,2520.8,0.1329188]
[1725297705569,3.96674,2521.0,2520.7,27.26]
[1725297705570,3.96674,2521.0,2520.9,0.13286838]
[1725297705971,3.96674,2521.0,2520.7,27.26]
[1725297706271,3.96674,2521.0,2520.8,0.13295426]
[1725297706482,3.96674,2521.0,2520.7,27.26]
[1725297706689,3.96674,2521.0,2520.9,0.13290384]
[1725297706894,3.96674,2521.0,2520.8,0.13295426]
[1725297707207,7.93314,2521.1,2520.9,0.13290384]
[1725297707563,7.93314,2521.1,2520.7,27.26]
[1725297707765,3.96652,2521.1,2521.0,0.13295981]
[1725297707976,3.96652,2521.1,2520.7,27.26]
[1725297708573,3.96652,2521.1,2520.8,0.13306063]
[1725297708914,3.96669,2521.0,2520.7,27.26]
[1725297709076,3.96669,2521.0,2520.9,0.13296767]
[1725297709411,3.96669,2521.0,2520.7,27.26]
[1725297709586,3.96669,2521.0,2520.9,0.13298894]
[1725297710120,3.96669,2521.0,2520.6,6.27594]
[1725297710273,3.96669,2521.0,2520.9,0.13298185]
[1725297710610,3.96669,2521.0,2520.6,6.27594]
[1725297710814,3.96669,2521.0,2520.9,0.13298185]
[1725297711011,3.96669,2521.0,2520.6,10.29087556]
[1725297711186,3.96669,2521.0,2520.9,0.13298185]
[1725297711385,3.96669,2521.0,2520.6,10.29087556]
[1725297711915,3.96669,2521.0,2520.7,0.13308268]
[1725297714216,3.96669,2521.0,2520.7,3.43267378]
[1725297714674,3.96652,2521.1,2520.7,3.43267378]
[1725297715313,3.96668,2521.0,2520.7,3.43267378]
[1725297716910,3.96653,2521.1,2520.7,3.43267378]
[1725297717136,3.96653,2521.1,2520.7,7.39981378]
[1725297717330,3.96608,2521.4,2520.8,5.4138205]
[1725297717627,3.96608,2521.4,2520.9,6.40546]
[1725297717926,6.23338,2521.5,2521.0,3.96667]
[1725297718129,6.23338,2521.5,2521.1,0.6538671]
[1725297718425,6.23338,2521.5,2521.1,4.75352306]
[1725297718645,2.2674,2522.4,2521.4,1.77168479]
[1725297718844,2.2674,2522.4,2521.8,6.404]
[1725297718987,2.2674,2522.4,2521.9,4.04441386]
[1725297719183,2.2674,2522.4,2521.9,4.17713997]
[1725297719436,3.96496,2522.1,2521.9,0.13272611]
[1725297719673,7.92951,2522.3,2521.5,26.98941648]
[1725297719810,3.96473,2522.3,2521.7,6.95626339]
[1725297720011,3.96488,2522.2,2521.8,0.1324078]
[1725297720516,3.96488,2522.2,2521.7,6.95626339]
[1725297720716,3.96488,2522.2,2521.9,0.13235742]
[1725297720941,2.2674,2522.4,2521.8,0.1324078]
[1725297720942,3.96521,2522.0,2521.8,0.1324078]
[1725297721151,6.41577,2522.1,2522.0,0.13230705]
[1725297721953,6.41577,2522.1,2521.5,4.53952648]
[1725297722156,6.41577,2522.1,2522.0,0.13230705]
[1725297722357,6.41577,2522.1,2521.6,7.14566265]
[1725297722545,6.41577,2522.1,2522.0,0.13230705]
[1725297722747,6.41577,2522.1,2521.6,7.14566265]
[1725297722918,7.92952,2522.3,2522.0,0.13208733]
[1725297723115,3.9648,2522.2,2522.0,0.13208733]
[1725297723374,3.9648,2522.2,2521.7,3.96555]
[1725297723520,3.9648,2522.2,2522.1,0.13203696]
[1725297723714,3.9648,2522.2,2521.7,3.96555]
[1725297723910,3.9648,2522.2,2522.1,0.13203696]
[1725297724116,3.9648,2522.2,2521.7,3.96555]
[1725297724433,3.9648,2522.2,2522.1,0.13203696]
[1725297724652,3.9648,2522.2,2521.7,3.96555]
[1725297724821,3.9648,2522.2,2521.8,0.13218807]
[1725297725017,3.9648,2522.2,2521.7,5.05967765]
[1725297725238,3.9648,2522.2,2521.8,0.13218807]
[1725297725459,3.9648,2522.2,2521.7,5.05967765]
[1725297725661,2.3769,2522.3,2521.8,4.09747807]
[1725297725961,6.34153,2522.3,2521.9,0.91571557]
[1725297726349,6.34153,2522.3,2522.0,0.13208733]
[1725297729517,3.96479,2522.2,2522.0,0.13208733]
[1725297729754,7.92968,2522.2,2522.0,0.13208733]
[1725297729881,7.92968,2522.2,2521.7,3.96555]
[1725297730309,3.96496,2522.1,2521.8,0.13147203]
[1725297730621,3.96497,2522.1,2521.8,0.13147203]
[1725297730779,3.96497,2522.1,2521.7,3.96555]
[1725297730982,3.96497,2522.1,2521.9,0.13144292]
[1725297731182,3.96497,2522.1,2521.8,0.13149329]
[1725297731507,3.96497,2522.1,2521.9,0.13144292]
[1725297732032,3.96533,2521.9,2521.6,19.98]
[1725297732345,6.28093,2521.9,2521.6,19.98]
[1725297733326,2.3156,2521.9,2521.6,19.98]
[1725297733480,7.93044,2522.0,2521.6,19.98]
[1725297733481,3.96521,2522.0,2521.6,19.98]
[1725297735080,3.96521,2522.0,2521.6,23.94571]
[1725297735288,3.96479,2522.2,2521.7,3.96545]
[1725297735713,3.96479,2522.2,2521.8,2.3604]
[1725297736431,3.96479,2522.2,2521.8,5.3657452]
[1725297739288,3.96479,2522.2,2521.9,0.13152796]
[1725297739713,3.96464,2522.3,2521.9,0.13152796]
[1725297740319,7.92915,2522.4,2522.0,3.9651]
[1725297740632,7.92912,2522.4,2522.1,0.4096628]
[1725297740858,7.92912,2522.4,2522.1,0.13136344]
[1725297741323,7.92912,2522.4,2522.2,0.1312989]
[1725297741324,3.96456,2522.4,2522.2,0.1312989]
[1725297741687,3.96456,2522.4,2521.9,4.04452867]
[1725297741908,3.96456,2522.4,2522.0,1.46895902]
[1725297742315,3.96456,2522.4,2522.0,5.43401902]
[1725297742529,3.96456,2522.4,2522.0,5.51331306]
[1725297743596,3.96456,2522.4,2522.0,5.43401902]
[1725297747137,3.96434,2522.5,2522.0,5.43395902]
[1725297747301,3.9645,2522.4,2522.0,5.43395902]
[1725297749742,3.9645,2522.4,2522.0,1.46895902]
[1725297749908,3.9645,2522.4,2522.0,0.13139963]
[1725297750239,3.96479,2522.2,2521.8,26.30571]
[1725297750440,3.96479,2522.2,2522.1,0.1309241]
[1725297750651,2.2844,2522.2,2521.8,19.98]
[1725297750957,4.19346,2522.1,2521.8,19.98]
[1725297751434,2.2844,2522.2,2521.8,19.98]
[1725297751744,3.96481,2522.2,2521.8,19.98]
[1725297753648,3.96475,2522.3,2521.8,19.98]
[1725297753818,3.96443,2522.5,2521.9,3.96518]
[1725297754019,3.96443,2522.5,2522.0,2.620728]
[1725297754020,3.9644,2522.5,2522.0,2.620728]
[1725297754320,3.96433,2522.5,2522.1,0.1309241]
[1725297754663,2.3287,2522.6,2522.1,4.0958441]
[1725297754664,6.29286,2522.6,2522.1,4.0958441]
[1725297754809,6.29286,2522.6,2522.1,6.4741441]
[1725297755317,3.96433,2522.5,2522.1,2.5092241]
[1725297755721,7.92873,2522.5,2522.1,2.5092241]
[1725297756644,3.96433,2522.5,2522.1,2.5092241]
[1725297759662,3.96433,2522.5,2522.1,6.4741641]
[1725297760356,3.96417,2522.6,2522.1,7.78015631]
[1725297761650,5.73406955,2522.7,2522.2,3.96479]
[1725297761849,5.73406955,2522.7,2522.2,3.96472]
[1725297762035,5.73406955,2522.7,2522.3,0.13082338]
[1725297762241,3.96425,2522.6,2522.3,0.13082338]
[1725297763551,3.96425,2522.6,2522.1,7.64922221]
[1725297763727,3.96425,2522.6,2522.4,0.13077303]
[1725297764066,3.96425,2522.6,2522.1,6.34323]
[1725297764565,3.96425,2522.6,2522.2,0.13087374]
[1725297765169,3.96454,2522.4,2522.2,0.13087374]
[1725297765386,5.73457955,2522.3,2522.2,0.13087374]
[1725297765672,3.96501,2522.1,2521.9,19.98]
[1725297765829,3.96501,2522.1,2522.0,0.1309107]
[1725297766025,3.96501,2522.1,2521.8,19.98]
[1725297766364,3.96501,2522.1,2521.9,0.13096107]
[1725297766668,6.31956,2522.3,2521.9,6.83525718]
[1725297767359,6.31956,2522.3,2521.9,2.87005718]
[1725297767563,6.31956,2522.3,2521.9,0.13096107]
[1725297767962,10.28427,2522.3,2521.9,0.13096107]
[1725297768783,3.96479,2522.2,2521.9,0.13096107]
[1725297769485,3.96479,2522.2,2521.9,20.11096107]
[1725297771086,3.9651,2522.0,2521.9,20.11096107]
[1725297771958,3.96495,2522.1,2521.9,20.11096107]
[1725297772161,1.76994955,2522.5,2521.9,22.85005718]
[1725297772162,4.21994955,2522.5,2521.9,22.85005718]
[1725297772354,4.21994955,2522.5,2521.9,29.20322718]
[1725297772355,3.96454,2522.4,2521.9,29.20322718]
[1725297772684,3.96454,2522.4,2522.0,2.92032272]
[1725297772891,7.9291,2522.4,2522.1,0.13104456]
[1725297773045,3.96454,2522.4,2522.1,0.13104456]
[1725297773244,3.96454,2522.4,2521.9,29.07226611]
[1725297773245,7.9291,2522.4,2521.9,29.07226611]
[1725297773577,7.9291,2522.4,2522.0,0.13109493]
[1725297774140,7.92911,2522.4,2522.0,0.13109493]
[1725297774788,3.96454,2522.4,2522.0,0.13109493]
[1725297774990,3.96454,2522.4,2522.0,3.44794703]
[1725297775355,3.96486,2522.2,2522.0,0.13109493]
[1725297775893,3.96494,2522.1,2522.0,0.13109493]
[1725297779186,3.96479,2522.2,2522.0,0.13109493]
[1725297779852,6.21765,2522.3,2522.0,0.13109493]
[1725297780060,3.96465,2522.3,2522.0,0.13109493]
[1725297780461,6.33813,2522.5,2522.0,4.09607493]
[1725297780656,6.33813,2522.5,2522.0,6.75291942]
[1725297780858,3.96443,2522.5,2522.0,6.75291942]
[1725297781385,3.9644,2522.5,2522.0,10.71794942]
[1725297781586,3.96361,2523.0,2522.5,3.9643]
[1725297781760,3.96299,2523.4,2522.6,2.33387838]
[1725297781761,3.96317,2523.3,2522.6,2.33387838]
[1725297782083,7.92632,2523.3,2522.7,8.16121784]
[1725297782267,3.96324,2523.2,2522.7,4.19729784]
[1725297782446,3.96324,2523.2,2522.8,0.13080548]
[1725297783192,3.96337,2523.1,2522.8,0.13080548]
[1725297783345,3.96322,2523.2,2522.8,0.13080548]
[1725297783559,9.69628955,2523.3,2522.8,0.13080548]
[1725297783759,5.73309955,2523.3,2522.8,0.13080548]
[1725297784200,3.9633,2523.2,2522.8,0.13080548]
[1725297785086,3.9633,2523.2,2522.6,6.21876]
[1725297785403,3.9633,2523.2,2522.7,1.14875003]
[1725297785708,3.9633,2523.2,2522.7,5.11272003]
[1725297786007,3.0,2523.7,2522.7,5.11272003]
[1725297786008,3.96286,2523.5,2523.0,3.96351]
[1725297786175,3.96286,2523.5,2523.1,0.396351]
[1725297786378,3.96286,2523.5,2523.1,0.13019404]
[1725297786581,5.73286955,2523.4,2523.1,0.13019404]
[1725297786807,5.73286955,2523.4,2522.9,3.96368]
[1725297787015,5.73286955,2523.4,2523.2,0.13012247]
[1725297787270,5.73286955,2523.4,2522.9,3.96368]
[1725297787427,5.73286955,2523.4,2523.3,0.13007216]
[1725297787632,5.73286955,2523.4,2522.9,3.96368]
[1725297787927,5.73286955,2523.4,2523.0,0.40429465]
[1725297788231,5.73286955,2523.4,2523.1,0.1301728]
[1725297788394,3.96292,2523.4,2523.1,0.1301728]
[1725297788588,3.96292,2523.4,2522.9,3.96368]
[1725297789222,3.96292,2523.4,2523.0,0.12940852]
[1725297790818,3.96286,2523.5,2523.0,0.12940852]
[1725297791031,7.92569,2523.5,2523.0,0.93507037]
[1725297791332,7.92567,2523.5,2523.0,4.89859037]
[1725297791489,3.96283,2523.5,2523.0,4.89859037]
[1725297791994,3.96293,2523.4,2523.0,0.93507037]
[1725297792189,3.96293,2523.4,2523.0,0.12940852]
[1725297793194,6.25873,2523.4,2523.0,0.12940852]
[1725297793397,8.02867955,2523.4,2523.0,0.12940852]
[1725297793810,4.06574955,2523.4,2523.0,4.09291852]
[1725297794336,4.06574955,2523.4,2523.0,4.90649602]
[1725297794747,8.02866955,2523.4,2523.0,4.90649602]
[1725297794921,3.96308,2523.3,2523.0,0.12940852]
[1725297795105,3.96215,2523.9,2522.7,19.98]
[1725297795106,3.96337,2523.1,2522.7,19.98]
[1725297795306,2.3001,2523.0,2522.8,0.12949502]
[1725297795497,6.2637,2523.0,2522.8,0.12949502]
[1725297796935,6.2637,2523.0,2522.9,0.12944469]
[1725297797141,6.2637,2523.0,2522.5,3.96419]
[1725297797298,6.2637,2523.0,2522.6,0.1295957]
[1725297799248,3.96369,2522.9,2522.6,0.1295957]
[1725297799601,3.96369,2522.9,2522.4,10.39695]
[1725297799809,3.96369,2522.9,2522.7,0.12977199]
[1725297800042,3.96369,2522.9,2522.4,6.43257]
[1725297800247,9.69746955,2522.9,2522.8,0.12972166]
[1725297800403,3.96392,2522.8,2522.3,23.94462]
[1725297800741,3.96369,2522.9,2522.4,7.78333]
[1725297800902,3.96369,2522.9,2522.5,0.12987268]
[1725297801437,7.92751,2522.9,2522.5,0.12987268]
[1725297801648,7.92832,2522.6,2522.5,0.12987268]
[1725297801835,3.96416,2522.6,2522.5,0.12987268]
[1725297802030,3.96416,2522.6,2522.2,7.28]
[1725297802287,3.96416,2522.6,2522.5,0.12987268]
[1725297802417,3.96433,2522.5,2522.2,7.28]
[1725297802620,6.28082,2522.8,2522.5,0.12987268]
[1725297802946,3.0,2523.2,2522.5,0.12987268]
[1725297802947,3.96353,2523.0,2522.6,0.12982234]
[1725297803936,6.36994,2523.1,2522.6,0.93566057]
[1725297804137,6.36994,2523.1,2522.6,0.12982234]
[1725297804340,3.96354,2523.0,2522.6,0.12982234]
[1725297804946,3.96374,2522.9,2522.6,0.12982234]
[1725297805339,3.96374,2522.9,2522.6,0.53922757]
[1725297808164,3.96374,2522.9,2522.6,0.12982234]
[1725297808664,3.96374,2522.9,2522.4,3.96445]
[1725297808861,3.96374,2522.9,2522.7,0.12977199]
[1725297809156,3.96374,2522.9,2522.8,0.12972166]
[1725297809357,3.96374,2522.9,2522.4,3.96445]
[1725297809557,3.96374,2522.9,2522.8,0.12972166]
[1725297809858,3.96374,2522.9,2522.4,3.96445]
[1725297810035,3.96374,2522.9,2522.8,0.12972166]
[1725297810232,3.96374,2522.9,2522.4,3.96445]
[1725297810458,3.96374,2522.9,2522.8,0.12972166]
[1725297810962,5.73349955,2523.0,2522.2,11.29493556]
[1725297810963,2.4232,2522.8,2522.2,7.28]
[1725297811131,4.19314955,2522.8,2522.2,7.28]
[1725297811337,3.96413,2522.7,2522.2,7.28]
[1725297811521,3.96455,2522.4,2522.2,7.28]
[1725297811724,3.96455,2522.4,2522.0,19.98]
[1725297813025,3.96455,2522.4,2522.0,23.94506]
[1725297814124,3.96455,2522.4,2522.1,0.12994661]
[1725297815270,2.4618,2522.2,2522.1,0.12994661]
[1725297817431,2.4618,2522.2,2521.8,3.96541]
[1725297817632,2.4618,2522.2,2522.1,0.1303574]
[1725297817828,2.4618,2522.2,2521.8,3.96541]
[1725297818062,2.4618,2522.2,2522.1,0.1303574]
[1725297818260,2.4618,2522.2,2521.9,3.96526]
[1725297818568,3.96472,2522.3,2522.0,0.13040776]
[1725297821084,7.92944,2522.3,2522.0,0.13040776]
[1725297821454,3.96472,2522.3,2522.0,0.13040776]
[1725297822054,7.92947,2522.3,2522.0,0.13040776]
[1725297822301,3.96472,2522.3,2522.0,0.13040776]
[1725297829881,6.23799,2522.4,2522.0,0.13040776]
[1725297830207,6.3939,2522.9,2522.3,3.96454]
[1725297830374,10.35767,2522.9,2522.4,3.96437]
[1725297830571,10.35767,2522.9,2522.4,4.73029296]
[1725297830766,6.3939,2522.9,2522.4,4.73029296]
[1725297830973,6.3939,2522.9,2522.5,3.96429]
[1725297831191,2.4302,2522.9,2522.6,3.96404]
[1725297831391,2.4302,2522.9,2522.6,4.09494695]
[1725297832344,3.96386,2522.8,2522.6,0.13080695]
[1725297832610,3.96386,2522.8,2522.4,3.96434]
[1725297832812,3.96386,2522.8,2522.7,0.13075661]
[1725297833107,3.96386,2522.8,2522.1,7.92969]
[1725297833108,3.96418,2522.6,2522.1,7.92969]
[1725297833899,6.37521,2522.7,2522.1,3.96482]
[1725297834115,3.96386,2522.8,2522.3,3.96453]
[1725297835414,3.96386,2522.8,2522.4,3.96446]
[1725297837480,7.92785,2522.8,2522.3,3.96462]
[1725297837811,6.3002,2522.7,2522.0,10.31931]
[1725297838018,3.96432,2522.5,2522.1,3.96492]
[1725297841419,3.96418,2522.6,2522.1,3.96492]
[1725297841721,3.96418,2522.6,2522.2,3.96478]
[1725297842074,6.3002,2522.7,2522.2,3.96478]
[1725297842279,6.3002,2522.7,2522.1,5.35597257]
[1725297842508,6.3002,2522.7,2522.1,3.96492]
[1725297842815,3.96433,2522.5,2522.1,3.96492]
[1725297843733,3.96418,2522.6,2522.1,3.96492]
[1725297843899,3.96418,2522.6,2522.2,3.96478]
[1725297844225,6.27686,2522.9,2522.4,3.96446]
[1725297844426,2.3131,2522.9,2522.5,3.96424]
[1725297844613,2.3131,2522.9,2522.5,4.0947785]
[1725297845531,8.04675955,2522.9,2522.5,0.1305385]
[1725297845704,9.07079355,2522.9,2522.5,0.1305385]
[1725297845906,3.96386,2522.8,2522.5,0.1305385]
[1725297846493,5.10708355,2522.9,2522.5,0.1305385]
[1725297846494,3.96411,2522.7,2522.5,0.1305385]
[1725297846830,3.96411,2522.7,2522.2,3.96465]
[1725297846992,3.96411,2522.7,2522.6,0.13048815]
[1725297847194,3.96418,2522.6,2522.2,3.96465]
[1725297847600,3.96411,2522.7,2522.2,6.983345]
[1725297847804,3.96385,2522.8,2522.3,3.9645]
[1725297850607,3.96402,2522.7,2522.3,3.9645]
[1725297854231,2.4231,2522.5,2522.1,23.94484]
[1725297855096,6.38751,2522.5,2522.1,23.94484]
[1725297856808,3.96449,2522.4,2522.1,19.98]
[1725297858741,3.96449,2522.4,2522.0,3.96508]
[1725297858919,3.96449,2522.4,2521.9,27.45281033]
[1725297859120,3.96466,2522.3,2521.9,26.20236]
[1725297859321,3.96466,2522.3,2522.0,0.13090363]
[1725297864364,2.4074,2522.2,2522.0,0.13090363]
[1725297867134,2.4074,2522.2,2521.8,11.2454]
[1725297867334,2.4074,2522.2,2522.1,0.13100204]
[1725297867530,2.4074,2522.2,2521.8,11.2454]
[1725297867730,2.4074,2522.2,2522.1,0.13100204]
[1725297867958,2.4074,2522.2,2521.8,11.2454]
[1725297868346,2.4074,2522.2,2521.9,0.13110277]
[1725297869373,2.4074,2522.2,2521.9,4.09635277]
[1725297869574,6.37223,2522.2,2521.9,0.13110277]
[1725297871081,6.37223,2522.2,2522.0,0.13105198]
[1725297871442,6.37223,2522.2,2521.7,27.91095]
[1725297871646,6.37223,2522.2,2522.1,0.13100161]
[1725297871878,6.37223,2522.2,2521.7,29.16140033]
[1725297872075,6.37223,2522.2,2522.1,0.13100161]
[1725297872400,6.37223,2522.2,2521.7,29.16140033]
[1725297872681,6.37223,2522.2,2521.7,27.91095]
[1725297872980,6.37223,2522.2,2521.8,0.13115272]
[1725297873339,6.37223,2522.2,2521.7,29.16140033]
[1725297873534,6.37223,2522.2,2521.9,0.13110235]
[1725297873772,6.37223,2522.2,2521.8,0.13115272]
[1725297873949,6.37223,2522.2,2522.0,0.13105198]
[1725297874151,6.37223,2522.2,2521.9,0.13110235]
[1725297874487,6.37223,2522.2,2521.7,29.16140033]
[1725297874488,6.37223,2522.2,2522.0,0.13114411]
[1725297874781,6.37223,2522.2,2521.7,29.16140033]
[1725297875001,6.37223,2522.2,2522.1,0.13109375]
[1725297875454,6.37223,2522.2,2521.7,29.16140033]
[1725297875775,6.37223,2522.2,2522.1,0.13109375]
[1725297875985,6.37223,2522.2,2521.7,25.19591033]
[1725297876164,6.37223,2522.2,2522.1,0.13109375]
[1725297876337,6.37223,2522.2,2521.7,23.94546]
[1725297876538,6.37223,2522.2,2522.1,0.13109375]
[1725297876778,7.405918,2522.2,2521.7,23.94546]
[1725297876974,6.37223,2522.2,2522.1,0.13109375]
[1725297877152,6.37223,2522.2,2521.7,23.94546]
[1725297877349,6.37223,2522.2,2522.1,0.13109375]
[1725297877918,6.37223,2522.2,2521.7,27.91093]
[1725297878071,6.37223,2522.2,2522.1,0.13109375]
[1725297878275,6.37223,2522.2,2521.7,23.94546]
[1725297878510,6.37223,2522.2,2522.1,0.13109375]
[1725297878813,7.405918,2522.2,2521.7,23.94546]
[1725297878976,6.37223,2522.2,2522.1,0.13109375]
[1725297879486,6.37223,2522.2,2521.7,27.91097]
[1725297879811,6.37223,2522.2,2522.1,0.13109375]
[1725297880000,7.405918,2522.2,2522.1,0.13109375]
[1725297880398,7.405918,2522.2,2521.7,23.94546]
[1725297880719,6.45517,2522.0,2521.7,19.98]
[1725297880873,6.45517,2522.0,2521.8,0.13124486]
[1725297881250,6.45517,2522.0,2521.9,0.13125117]
[1725297881826,6.45517,2522.0,2521.9,0.13126534]
[1725297882034,7.67419096,2522.0,2521.7,19.98]
[1725297882240,6.45517,2522.0,2521.7,19.98]
[1725297882390,6.45517,2522.0,2521.8,0.13140785]
[1725297882724,6.45517,2522.0,2521.7,19.98]
[1725297882930,6.45517,2522.0,2521.9,0.13135747]
[1725297883111,6.45517,2522.0,2521.8,0.13140785]
[1725297883112,7.497196,2522.0,2521.8,0.13140785]
[1725297883430,7.497196,2522.0,2521.9,0.13135747]
[1725297883629,2.49,2522.0,2521.9,0.13135747]
[1725297883829,3.96509,2522.1,2521.9,0.13136456]
[1725297884333,3.96509,2522.1,2521.7,23.94553]
[1725297884334,2.2604,2522.2,2522.0,0.13131419]
[1725297884505,2.2604,2522.4,2522.0,0.13131419]
[1725297884710,6.22496,2522.4,2521.9,3.96518]
[1725297884907,3.96464,2522.3,2522.1,0.13136301]
[1725297885107,5.0532195,2522.3,2522.0,0.13140629]
[1725297885331,5.0532195,2522.3,2522.2,0.13130556]
[1725297885503,3.96464,2522.3,2522.1,0.13135593]
[1725297885711,3.96464,2522.3,2522.2,0.13130556]
[1725297885918,3.96464,2522.3,2521.9,3.96518]
[1725297886743,3.96464,2522.3,2522.0,0.1313496]
[1725297889164,6.22489,2522.4,2522.0,0.1313496]
[1725297889313,3.96433,2522.5,2522.1,3.96494]
[1725297889515,3.96433,2522.5,2522.1,4.09618254]
[1725297889819,2.4426,2522.6,2522.1,1.01666692]
[1725297890014,2.4426,2522.6,2522.3,3.96454]
[1725297890263,2.4426,2522.6,2522.4,0.13109147]
[1725297895967,3.96387,2522.8,2522.4,0.13109147]
[1725297896273,2.2548,2522.8,2522.4,4.90952438]
[1725297896473,2.4841,2523.0,2522.6,3.96415]
[1725297896839,2.4841,2523.0,2522.7,0.12656848]
[1725297897041,6.44767,2523.0,2522.7,0.12656848]
[1725297897851,2.3242,2522.8,2522.7,0.12656848]
[1725297898057,6.28804,2522.8,2522.3,3.96462]
[1725297898351,6.28804,2522.8,2522.7,0.12624255]
[1725297898552,6.28804,2522.8,2522.3,3.96462]
[1725297898553,3.96403,2522.7,2522.3,3.96462]
[1725297899340,3.96403,2522.7,2522.3,4.757547]
[1725297901172,6.28804,2522.8,2522.3,4.757547]
[1725297901376,6.28804,2522.8,2522.4,3.96445]
[1725297901555,3.96365,2523.0,2522.4,3.96445]
[1725297901556,2.3168,2523.0,2522.6,3.96404]
[1725297901867,2.3168,2523.0,2522.6,4.603684]
[1725297902987,6.28033,2523.0,2522.6,4.603684]
[1725297903548,6.27964,2523.5,2523.0,3.96346]
[1725297903981,2.3168,2523.5,2523.1,3.96333]
[1725297904420,2.3168,2523.5,2523.2,0.12562249]
[1725297904617,5.73247955,2523.7,2523.2,4.08876249]
[1725297904816,3.96259,2523.6,2523.2,0.12562249]
[1725297904971,3.96275,2523.5,2523.2,0.12562249]
[1725297905175,3.96293,2523.4,2523.2,0.12562249]
[1725297905676,3.96293,2523.4,2523.3,0.12542344]
[1725297905875,3.96293,2523.4,2523.0,0.396357]
[1725297906077,3.96293,2523.4,2523.3,0.12542344]
[1725297906315,3.96293,2523.4,2523.0,0.396357]
[1725297906621,3.96293,2523.4,2523.3,0.12542344]
[1725297906774,2.4049,2523.1,2522.7,3.96392]
[1725297906969,2.4049,2523.1,2522.8,3.96374]
[1725297907175,2.4049,2523.1,2522.8,8.05267931]
[1725297907377,2.4049,2523.1,2522.8,4.08891931]
[1725297907583,2.4049,2523.1,2522.8,0.12517931]
[1725297907790,6.36831,2523.1,2522.8,0.12517931]
[1725297908113,6.36831,2523.1,2522.7,3.96399]
[1725297908317,6.36831,2523.1,2522.9,0.12512897]
[1725297908609,6.36831,2523.1,2522.7,3.96399]
[1725297908776,6.36831,2523.1,2523.0,0.12507864]
[1725297908977,6.36831,2523.1,2522.7,3.96399]
[1725297909197,6.36831,2523.1,2523.0,0.12507864]
[1725297909410,6.36831,2523.1,2522.7,3.96399]
[1725297909612,6.36831,2523.1,2523.0,0.12507864]
[1725297909812,9.34839351,2523.1,2523.0,0.12507864]
[1725297910117,8.13825955,2523.1,2523.0,0.12507864]
[1725297910316,3.96358,2523.0,2522.6,3.96401]
[1725297911100,3.9637,2522.9,2522.4,3.96435]
[1725297911989,3.9637,2522.9,2522.5,3.96429]
[1725297912186,5.73364955,2522.9,2522.4,3.96446]
[1725297912400,3.96392,2522.8,2522.4,3.96447]
[1725297912599,2.4931,2523.0,2522.6,3.96409]
[1725297913405,6.45665,2523.0,2522.5,3.96431]
[1725297913593,7.498662,2523.0,2522.5,3.96431]
[1725297915549,3.9637,2522.9,2522.3,11.24452]
[1725297915713,6.27797,2522.8,2522.3,7.28]
[1725297916021,6.27797,2522.8,2522.3,11.24452]
[1725297916785,6.27797,2522.8,2522.4,3.96447]
[1725297917009,2.314,2522.8,2522.4,3.96447]
[1725297917217,6.27738,2523.1,2522.6,3.96409]
[1725297917546,3.96361,2523.0,2522.5,3.96417]
[1725297919435,3.96361,2523.0,2522.6,0.12566949]
[1725297920835,2.314,2522.8,2522.6,0.12566949]
[1725297922183,3.96361,2523.0,2522.6,0.12566949]
[1725297922184,3.96355,2523.0,2522.6,0.12566949]
[1725297922403,6.27732,2523.2,2522.7,3.96392]
[1725297922404,10.24062,2523.2,2522.7,3.96392]
[1725297922683,10.24062,2523.2,2522.8,0.12557589]
[1725297923934,3.96339,2523.1,2522.8,0.12557589]
[1725297925519,6.2881,2523.4,2522.8,2.38377589]
[1725297925727,2.3251,2523.4,2522.9,4.04285669]
[1725297925962,2.3251,2523.4,2523.0,4.60611326]
[1725297926140,3.96282,2523.5,2523.0,4.73151766]
[1725297926689,3.9629,2523.4,2523.0,4.0888544]
[1725297932274,7.92589,2523.4,2523.0,4.0888544]
[1725297932486,3.9629,2523.4,2523.0,0.1254044]
[1725297933272,3.96307,2523.3,2523.0,0.1254044]
[1725297933642,6.3077,2523.2,2523.0,0.1254044]
[1725297933872,6.3077,2523.2,2522.7,3.9639]
[1725297934074,6.3077,2523.2,2523.1,0.12497167]
[1725297934259,6.3077,2523.2,2522.7,3.9639]
[1725297934477,3.96338,2523.1,2522.8,0.12512267]
[1725297936197,3.96364,2523.0,2522.8,0.12512267]
[1725297936394,2.3165,2522.9,2522.8,0.12512267]
[1725297936595,10.24388,2522.9,2522.6,7.28]
[1725297936745,3.96385,2522.8,2522.6,7.28]
[1725297937620,2.3645,2523.1,2522.6,14.784896]